[Event "Live Chess"]
[Site "Chess.com"]
[Date "2023.05.21"]
[Round "-"]
[White "Woodpusher500"]
[Black "EdenHazard8"]
[Result "0-1"]
[WhiteElo "1031"]
[BlackElo "1950"]
[TimeControl "300"]
[EndTime "3:49:30 PDT"]
[Termination "EdenHazard8 won by resignation"]

1. e4 {[%clk 0:04:57.8]} 1... c6 {[%clk 0:04:56.1]} 2. Nf3 {[%clk 0:04:53.1]}
2... d5 {[%clk 0:04:56]} 3. Nc3 {[%clk 0:04:51]} 3... dxe4 {[%clk 0:04:53.8]} 4.
Nxe4 {[%clk 0:04:48.9]} 4... Nf6 {[%clk 0:04:53.7]} 5. Nxf6+ {[%clk 0:04:43.1]}
5... exf6 {[%clk 0:04:53.6]} 6. Qe2+ {[%clk 0:04:32.6]} 6... Be7 {[%clk
0:04:50.4]} 7. g3 {[%clk 0:04:30.1]} 7... O-O {[%clk 0:04:48.4]} 8. Bg2 {[%clk
0:04:22.2]} 8... Re8 {[%clk 0:04:46.6]} 9. d3 {[%clk 0:04:08.5]} 9... Bb4+
{[%clk 0:04:43.4]} 10. c3 {[%clk 0:04:02.8]} 10... Rxe2+ {[%clk 0:04:43.3]} 11.
Kxe2 {[%clk 0:04:01.2]} 11... Qe7+ {[%clk 0:04:37.1]} 12. Kd2 {[%clk 0:03:58.7]}
12... Bc5 {[%clk 0:04:33.2]} 13. Re1 {[%clk 0:03:56.2]} 13... Qd8 {[%clk
0:04:29.9]} 14. d4 {[%clk 0:03:54.4]} 14... Bb6 {[%clk 0:04:28.6]} 15. a4 {[%clk
0:03:52.1]} 15... Be6 {[%clk 0:04:26.7]} 16. a5 {[%clk 0:03:47.1]} 16... Bc7
{[%clk 0:04:24.5]} 17. Kc2 {[%clk 0:03:42.8]} 17... Bf5+ {[%clk 0:04:21.9]} 18.
Kb3 {[%clk 0:03:40.1]} 18... Be4 {[%clk 0:04:18.6]} 19. Rxe4 {[%clk 0:03:34.5]}
19... Qd5+ {[%clk 0:04:17.2]} 20. Ka3 {[%clk 0:03:30.3]} 20... Qxe4 {[%clk
0:04:17.1]} 21. Be3 {[%clk 0:03:27.6]} 21... Bd6+ {[%clk 0:04:15.8]} 22. Ka2
{[%clk 0:03:19.8]} 22... Na6 {[%clk 0:04:13.4]} 23. b4 {[%clk 0:03:16.5]} 23...
Qd5+ {[%clk 0:04:11.6]} 24. Kb2 {[%clk 0:03:13.4]} 24... Re8 {[%clk 0:04:09.1]}
25. Nh4 {[%clk 0:03:08.7]} 25... Qc4 {[%clk 0:04:07]} 26. Re1 {[%clk 0:03:02.2]}
26... Nxb4 {[%clk 0:04:05.5]} 27. cxb4 {[%clk 0:02:59.7]} 27... Qxb4+ {[%clk
0:04:05.4]} 28. Kc2 {[%clk 0:02:57.8]} 28... Qxe1 {[%clk 0:04:05.3]} 0-1

[Event "Live Chess"]
[Site "Chess.com"]
[Date "2023.05.21"]
[Round "-"]
[White "Bunny55"]
[Black "domrobson"]
[Result "1-0"]
[WhiteElo "994"]
[BlackElo "1698"]
[TimeControl "300"]
[EndTime "3:49:39 PDT"]
[Termination "Bunny55 won by resignation"]

1. e4 {[%clk 0:04:55]} 1... e5 {[%clk 0:04:59.5]} 2. Nf3 {[%clk 0:04:53]} 2...
Nc6 {[%clk 0:04:58.9]} 3. Bb5 {[%clk 0:04:51.6]} 3... a6 {[%clk 0:04:57.7]} 4.
Ba4 {[%clk 0:04:50]} 4... Nf6 {[%clk 0:04:57.2]} 5. d3 {[%clk 0:04:48.3]} 5...
d6 {[%clk 0:04:55.7]} 6. h3 {[%clk 0:04:46.1]} 6... b5 {[%clk 0:04:54.9]} 7. Bb3
{[%clk 0:04:44.6]} 7... Na5 {[%clk 0:04:52.4]} 8. O-O {[%clk 0:04:42.8]} 8...
Nxb3 {[%clk 0:04:51.2]} 9. axb3 {[%clk 0:04:42.5]} 9... Be7 {[%clk 0:04:50.6]}
10. c3 {[%clk 0:04:37.2]} 10... Bb7 {[%clk 0:04:49.3]} 11. Re1 {[%clk
0:04:35.9]} 11... c5 {[%clk 0:04:48.6]} 12. Nbd2 {[%clk 0:04:33.5]} 12... O-O
{[%clk 0:04:47.2]} 13. Nf1 {[%clk 0:04:32.5]} 13... h6 {[%clk 0:04:45.4]} 14.
Ng3 {[%clk 0:04:31.5]} 14... Nh7 {[%clk 0:04:44.3]} 15. Nf5 {[%clk 0:04:29.6]}
15... Bg5 {[%clk 0:04:37.6]} 16. Be3 {[%clk 0:04:18.6]} 16... Bc8 {[%clk
0:04:21.6]} 17. Bxg5 {[%clk 0:04:11.1]} 17... hxg5 {[%clk 0:04:17.5]} 18. Qd2
{[%clk 0:04:00.8]} 18... Bxf5 {[%clk 0:04:15.5]} 19. exf5 {[%clk 0:03:57.4]}
19... f6 {[%clk 0:04:14.4]} 20. Nh2 {[%clk 0:03:36]} 20... Qd7 {[%clk
0:04:11.2]} 21. g4 {[%clk 0:03:34]} 21... Rfe8 {[%clk 0:04:01.3]} 22. d4 {[%clk
0:03:31.7]} 22... exd4 {[%clk 0:03:59.3]} 23. Rxe8+ {[%clk 0:03:29.1]} 23...
Qxe8 {[%clk 0:03:56.8]} 24. Re1 {[%clk 0:03:25.5]} 24... Qf7 {[%clk 0:03:53.1]}
25. cxd4 {[%clk 0:03:23.2]} 25... Qxb3 {[%clk 0:03:51.3]} 26. dxc5 {[%clk
0:03:18]} 26... dxc5 {[%clk 0:03:49.7]} 27. Re7 {[%clk 0:03:08.8]} 27... c4
{[%clk 0:03:25.2]} 28. Qd7 {[%clk 0:03:06]} 1-0

[Event "Live Chess"]
[Site "Chess.com"]
[Date "2023.05.21"]
[Round "-"]
[White "peter-785"]
[Black "Davidagye"]
[Result "0-1"]
[WhiteElo "1189"]
[BlackElo "1685"]
[TimeControl "300"]
[EndTime "3:49:52 PDT"]
[Termination "Davidagye won by resignation"]

1. e4 {[%clk 0:04:57.1]} 1... e5 {[%clk 0:04:58.6]} 2. Nf3 {[%clk 0:04:56.7]}
2... Nc6 {[%clk 0:04:51.7]} 3. Bc4 {[%clk 0:04:55.9]} 3... Nf6 {[%clk
0:04:40.8]} 4. Nc3 {[%clk 0:04:52.5]} 4... Nxe4 {[%clk 0:04:39.5]} 5. Nxe4
{[%clk 0:04:36]} 5... d5 {[%clk 0:04:33.5]} 6. Bxd5 {[%clk 0:04:31]} 6... Qxd5
{[%clk 0:04:27.5]} 7. Nc3 {[%clk 0:04:27.4]} 7... Qd8 {[%clk 0:04:24.7]} 8. O-O
{[%clk 0:04:25.9]} 8... Bg4 {[%clk 0:04:21.6]} 9. Qe1 {[%clk 0:04:06.2]} 9...
Bxf3 {[%clk 0:04:12.9]} 10. gxf3 {[%clk 0:04:04.3]} 10... Bc5 {[%clk 0:04:11.8]}
11. Qe4 {[%clk 0:03:46.9]} 11... O-O {[%clk 0:04:04.1]} 12. Ne2 {[%clk
0:03:31.8]} 12... f5 {[%clk 0:03:53.2]} 13. Qc4+ {[%clk 0:03:24.6]} 13... Kh8
{[%clk 0:03:52.5]} 14. d3 {[%clk 0:03:15.4]} 14... Bb6 {[%clk 0:03:50.3]} 15.
Ng3 {[%clk 0:03:07.8]} 15... f4 {[%clk 0:03:47.4]} 16. Ne4 {[%clk 0:03:06.5]}
16... Qh4 {[%clk 0:03:45.1]} 17. d4 {[%clk 0:02:37.4]} 17... Nxd4 {[%clk
0:03:40.1]} 18. Qd3 {[%clk 0:02:28.5]} 18... Qh3 {[%clk 0:03:24.5]} 19. Bd2
{[%clk 0:02:15.4]} 19... Nxf3+ {[%clk 0:03:20.5]} 0-1

[Event "Live Chess"]
[Site "Chess.com"]
[Date "2023.05.21"]
[Round "-"]
[White "DoYouLikeCurry"]
[Black "SmoothBaron"]
[Result "0-1"]
[WhiteElo "1400"]
[BlackElo "2358"]
[TimeControl "300"]
[EndTime "3:49:57 PDT"]
[Termination "SmoothBaron won by resignation"]

1. e4 {[%clk 0:04:58]} 1... e5 {[%clk 0:04:58.3]} 2. Nc3 {[%clk 0:04:56.4]} 2...
Nc6 {[%clk 0:04:56.9]} 3. Bc4 {[%clk 0:04:54.9]} 3... Bc5 {[%clk 0:04:55.4]} 4.
Qg4 {[%clk 0:04:53.3]} 4... g6 {[%clk 0:04:54.5]} 5. Nd5 {[%clk 0:04:48.1]} 5...
d6 {[%clk 0:04:47.8]} 6. Qf3 {[%clk 0:04:32.3]} 6... Nd4 {[%clk 0:04:43.1]} 7.
Qd3 {[%clk 0:04:27.2]} 7... c6 {[%clk 0:04:38.2]} 8. Ne3 {[%clk 0:04:23.1]} 8...
Be6 {[%clk 0:04:07.7]} 9. Bxe6 {[%clk 0:04:17.5]} 9... Nxe6 {[%clk 0:04:04.2]}
10. Nf3 {[%clk 0:04:11.1]} 10... Nf4 {[%clk 0:03:59.9]} 11. Qb3 {[%clk
0:04:01.5]} 11... Nf6 {[%clk 0:03:41.8]} 12. Ng5 {[%clk 0:03:58.2]} 12... Qd7
{[%clk 0:03:32.1]} 13. d3 {[%clk 0:03:53.8]} 13... Bxe3 {[%clk 0:03:23.2]} 14.
Bxe3 {[%clk 0:03:52.1]} 14... Nxg2+ {[%clk 0:03:21.5]} 15. Ke2 {[%clk
0:03:47.8]} 15... h6 {[%clk 0:03:16.8]} 16. Nf3 {[%clk 0:03:46]} 16... Nh5
{[%clk 0:03:14]} 17. Kd2 {[%clk 0:03:30.7]} 17... O-O-O {[%clk 0:03:04.7]} 18.
a4 {[%clk 0:03:26.6]} 18... Kb8 {[%clk 0:02:59]} 19. a5 {[%clk 0:03:24]} 19...
c5 {[%clk 0:02:54.9]} 20. Qc4 {[%clk 0:03:14]} 20... Qg4 {[%clk 0:02:33.8]} 21.
Ne1 {[%clk 0:02:59.4]} 21... Ngf4 {[%clk 0:02:28.4]} 22. Bxf4 {[%clk 0:02:52.2]}
22... Nxf4 {[%clk 0:02:26.7]} 23. f3 {[%clk 0:02:50.4]} 23... Qe6 {[%clk
0:02:23.1]} 24. Qxe6 {[%clk 0:02:47.9]} 24... Nxe6 {[%clk 0:02:21.8]} 25. Ng2
{[%clk 0:02:42.6]} 25... Nd4 {[%clk 0:02:17.7]} 26. Rhf1 {[%clk 0:02:36.5]}
26... g5 {[%clk 0:02:15.1]} 27. c3 {[%clk 0:02:33.6]} 27... Nb3+ {[%clk
0:02:13.6]} 28. Kc2 {[%clk 0:02:30.9]} 28... Nxa1+ {[%clk 0:02:12.5]} 29. Rxa1
{[%clk 0:02:30.8]} 29... Rdg8 {[%clk 0:02:10]} 30. Ne3 {[%clk 0:02:28]} 30... h5
{[%clk 0:02:08.7]} 31. Nd5 {[%clk 0:02:26.5]} 31... g4 {[%clk 0:02:05.5]} 32.
fxg4 {[%clk 0:02:24.5]} 32... hxg4 {[%clk 0:02:04.5]} 33. Rh1 {[%clk 0:02:20]}
0-1

[Event "Live Chess"]
[Site "Chess.com"]
[Date "2023.05.21"]
[Round "-"]
[White "hturner40"]
[Black "garyjc"]
[Result "1-0"]
[WhiteElo "1800"]
[BlackElo "1045"]
[TimeControl "300"]
[EndTime "3:50:08 PDT"]
[Termination "hturner40 won by resignation"]

1. Nf3 {[%clk 0:04:58.6]} 1... Nf6 {[%clk 0:04:55.2]} 2. g3 {[%clk 0:04:57.4]}
2... g6 {[%clk 0:04:54.6]} 3. Bg2 {[%clk 0:04:56.5]} 3... Bg7 {[%clk 0:04:53.9]}
4. O-O {[%clk 0:04:56]} 4... O-O {[%clk 0:04:53.2]} 5. d4 {[%clk 0:04:55.3]}
5... d6 {[%clk 0:04:52.3]} 6. c4 {[%clk 0:04:54.4]} 6... Na6 {[%clk 0:04:34.1]}
7. Nc3 {[%clk 0:04:52.8]} 7... c5 {[%clk 0:04:27.1]} 8. e3 {[%clk 0:04:51.5]}
8... cxd4 {[%clk 0:04:20.9]} 9. exd4 {[%clk 0:04:43.3]} 9... b6 {[%clk
0:04:07.2]} 10. Ne5 {[%clk 0:04:02.2]} 10... Rb8 {[%clk 0:03:58.7]} 11. Nc6
{[%clk 0:03:59]} 11... Qd7 {[%clk 0:03:45.8]} 12. Nxb8 {[%clk 0:03:54.3]} 12...
Nxb8 {[%clk 0:03:43.2]} 13. Be3 {[%clk 0:03:39.5]} 13... Ng4 {[%clk 0:03:38.3]}
14. Qa4 {[%clk 0:03:13]} 14... Nxe3 {[%clk 0:03:04.9]} 15. Qxd7 {[%clk
0:03:06.3]} 15... Nxd7 {[%clk 0:02:55.2]} 16. fxe3 {[%clk 0:03:04.9]} 16... Nf6
{[%clk 0:02:42.1]} 17. Nd5 {[%clk 0:02:56.2]} 17... Re8 {[%clk 0:02:21.1]} 18.
Nxf6+ {[%clk 0:02:47.4]} 18... Bxf6 {[%clk 0:02:18.9]} 19. Bd5 {[%clk 0:02:38]}
19... Bh3 {[%clk 0:02:04.8]} 20. Rf2 {[%clk 0:02:20]} 20... e6 {[%clk
0:01:56.1]} 21. Bg2 {[%clk 0:02:16.3]} 21... Bxg2 {[%clk 0:01:51.2]} 22. Kxg2
{[%clk 0:02:14]} 22... Bg7 {[%clk 0:01:50.3]} 23. Raf1 {[%clk 0:02:11.3]} 23...
Re7 {[%clk 0:01:42.8]} 24. b4 {[%clk 0:02:03]} 24... d5 {[%clk 0:01:40.9]} 25.
c5 {[%clk 0:02:00.7]} 25... bxc5 {[%clk 0:01:35.2]} 26. bxc5 {[%clk 0:01:59]}
26... a5 {[%clk 0:01:26.4]} 27. Rb1 {[%clk 0:01:52.9]} 27... Bh6 {[%clk
0:01:19]} 28. Rb8+ {[%clk 0:01:47.4]} 28... Kg7 {[%clk 0:01:17.5]} 29. Kf3
{[%clk 0:01:45.3]} 29... e5 {[%clk 0:01:13.7]} 30. Re2 {[%clk 0:01:29.1]} 30...
exd4 {[%clk 0:01:04.8]} 31. exd4 {[%clk 0:01:26.2]} 31... Rxe2 {[%clk
0:00:41.2]} 32. Kxe2 {[%clk 0:01:22.7]} 32... f5 {[%clk 0:00:38.6]} 33. c6
{[%clk 0:01:17.6]} 1-0

[Event "Live Chess"]
[Site "Chess.com"]
[Date "2023.05.21"]
[Round "-"]
[White "YrrriKharkiv"]
[Black "Tilbs_12"]
[Result "1-0"]
[WhiteElo "2064"]
[BlackElo "1582"]
[TimeControl "300"]
[EndTime "3:50:20 PDT"]
[Termination "YrrriKharkiv won by checkmate"]

1. d4 {[%clk 0:04:58.7]} 1... d5 {[%clk 0:04:58.9]} 2. c4 {[%clk 0:04:57.2]}
2... c6 {[%clk 0:04:57.8]} 3. Nc3 {[%clk 0:04:55.4]} 3... Nf6 {[%clk 0:04:56.6]}
4. Bg5 {[%clk 0:04:52.7]} 4... dxc4 {[%clk 0:04:52.5]} 5. a4 {[%clk 0:04:50.8]}
5... Be6 {[%clk 0:04:36.7]} 6. e4 {[%clk 0:04:44.9]} 6... g6 {[%clk 0:04:16.8]}
7. Bxf6 {[%clk 0:04:36.4]} 7... exf6 {[%clk 0:04:14.3]} 8. d5 {[%clk 0:04:32.3]}
8... cxd5 {[%clk 0:04:13.3]} 9. exd5 {[%clk 0:04:30.9]} 9... Bf5 {[%clk
0:04:08.7]} 10. Bxc4 {[%clk 0:04:29.5]} 10... Bc5 {[%clk 0:03:55.9]} 11. Nf3
{[%clk 0:04:15.9]} 11... O-O {[%clk 0:03:54.4]} 12. O-O {[%clk 0:04:14.4]} 12...
a6 {[%clk 0:03:50.8]} 13. Qd2 {[%clk 0:04:07.3]} 13... Nd7 {[%clk 0:03:47.2]}
14. Rfe1 {[%clk 0:04:01.5]} 14... Re8 {[%clk 0:03:43.8]} 15. Nd4 {[%clk
0:03:45.4]} 15... Bxd4 {[%clk 0:03:32.7]} 16. Qxd4 {[%clk 0:03:43.7]} 16...
Rxe1+ {[%clk 0:03:31.9]} 17. Rxe1 {[%clk 0:03:40.4]} 17... Ne5 {[%clk
0:03:31.4]} 18. Bf1 {[%clk 0:03:22.8]} 18... Qd6 {[%clk 0:03:23.3]} 19. h3
{[%clk 0:03:04.9]} 19... Rd8 {[%clk 0:03:19.6]} 20. Be2 {[%clk 0:02:45.1]} 20...
Be6 {[%clk 0:03:17.1]} 21. f4 {[%clk 0:02:30.7]} 21... Nc6 {[%clk 0:03:08.3]}
22. Qb6 {[%clk 0:02:26.2]} 22... Bxd5 {[%clk 0:03:01.7]} 23. Rd1 {[%clk
0:02:21.6]} 23... Ne7 {[%clk 0:02:50.4]} 24. Qxd6 {[%clk 0:02:14.9]} 24... Rxd6
{[%clk 0:02:49]} 25. Bf3 {[%clk 0:02:10.8]} 25... Rb6 {[%clk 0:02:24.5]} 26.
Nxd5 {[%clk 0:01:52.5]} 26... Nxd5 {[%clk 0:02:23.4]} 27. Rxd5 {[%clk
0:01:50.8]} 27... Rxb2 {[%clk 0:02:22.6]} 28. Rd7 {[%clk 0:01:49.8]} 28... b5
{[%clk 0:02:09.5]} 29. axb5 {[%clk 0:01:48]} 29... axb5 {[%clk 0:02:08.6]} 30.
Rb7 {[%clk 0:01:45.9]} 30... b4 {[%clk 0:02:05.8]} 31. Bd5 {[%clk 0:01:44.6]}
31... f5 {[%clk 0:01:56.1]} 32. Bxf7+ {[%clk 0:01:42.7]} 32... Kh8 {[%clk
0:01:55.6]} 33. Kh2 {[%clk 0:01:31.6]} 33... Kg7 {[%clk 0:01:51.8]} 34. Kg3
{[%clk 0:01:21.8]} 34... Kf6 {[%clk 0:01:50.5]} 35. Bg8 {[%clk 0:01:17.8]} 35...
h6 {[%clk 0:01:47.9]} 36. h4 {[%clk 0:01:10.7]} 36... g5 {[%clk 0:01:41.2]} 37.
hxg5+ {[%clk 0:01:02.5]} 37... hxg5 {[%clk 0:01:40.2]} 38. Rf7+ {[%clk
0:01:00.8]} 38... Kg6 {[%clk 0:01:36.6]} 39. fxg5 {[%clk 0:00:51]} 39... Kxg5
{[%clk 0:01:27.1]} 40. Rb7 {[%clk 0:00:35.9]} 40... Rb1 {[%clk 0:01:15.7]} 41.
Rb5 {[%clk 0:00:29.3]} 41... Kg6 {[%clk 0:01:06.6]} 42. Bd5 {[%clk 0:00:22.6]}
42... Kg5 {[%clk 0:01:01]} 43. Bf3 {[%clk 0:00:13.6]} 43... b3 {[%clk
0:00:57.6]} 44. Be4 {[%clk 0:00:10.1]} 44... Rb2 {[%clk 0:00:51.5]} 45. Rxf5+
{[%clk 0:00:08.8]} 45... Kh6 {[%clk 0:00:49.2]} 46. Rb5 {[%clk 0:00:08.5]} 46...
Kg7 {[%clk 0:00:46.9]} 47. Bf3 {[%clk 0:00:08.1]} 47... Kf6 {[%clk 0:00:45.9]}
48. Kf4 {[%clk 0:00:07.7]} 48... Kg6 {[%clk 0:00:43.7]} 49. Rb6+ {[%clk
0:00:07.4]} 49... Kf7 {[%clk 0:00:42.9]} 50. g4 {[%clk 0:00:07.2]} 50... Kg7
{[%clk 0:00:41.8]} 51. g5 {[%clk 0:00:06.8]} 51... Kf7 {[%clk 0:00:40.4]} 52.
Kf5 {[%clk 0:00:06.3]} 52... Rf2 {[%clk 0:00:39]} 53. Rxb3 {[%clk 0:00:05.5]}
53... Rxf3+ {[%clk 0:00:36.4]} 54. Rxf3 {[%clk 0:00:03.5]} 54... Kg7 {[%clk
0:00:36.3]} 55. Kg4 {[%clk 0:00:02.9]} 55... Kg6 {[%clk 0:00:35.4]} 56. Rf6+
{[%clk 0:00:02.7]} 56... Kg7 {[%clk 0:00:34.5]} 57. Kf5 {[%clk 0:00:02.5]} 57...
Kg8 {[%clk 0:00:32.6]} 58. g6 {[%clk 0:00:02.2]} 58... Kg7 {[%clk 0:00:32]} 59.
Re6 {[%clk 0:00:02.1]} 59... Kf8 {[%clk 0:00:31]} 60. Kf6 {[%clk 0:00:01.5]}
60... Kg8 {[%clk 0:00:30.3]} 61. Re8# {[%clk 0:00:01.3]} 1-0

[Event "Live Chess"]
[Site "Chess.com"]
[Date "2023.05.21"]
[Round "-"]
[White "defenderalist"]
[Black "Berdgross"]
[Result "1-0"]
[WhiteElo "1639"]
[BlackElo "667"]
[TimeControl "300"]
[EndTime "3:50:34 PDT"]
[Termination "defenderalist won by resignation"]

1. e4 {[%clk 0:04:58.5]} 1... e5 {[%clk 0:04:59.5]} 2. Nf3 {[%clk 0:04:48.5]}
2... d6 {[%clk 0:04:59.4]} 3. h3 {[%clk 0:04:43.8]} 3... Nf6 {[%clk 0:04:57.5]}
4. Nc3 {[%clk 0:04:42.1]} 4... Nc6 {[%clk 0:04:55.9]} 5. Bc4 {[%clk 0:04:36.8]}
5... Nd4 {[%clk 0:04:52.2]} 6. Nxd4 {[%clk 0:04:34.8]} 6... exd4 {[%clk
0:04:50.8]} 7. Nd5 {[%clk 0:04:31.9]} 7... Nxd5 {[%clk 0:04:48.7]} 8. Bxd5
{[%clk 0:04:29.9]} 8... Be6 {[%clk 0:04:43.5]} 9. Bxb7 {[%clk 0:04:24.6]} 9...
Rb8 {[%clk 0:04:43]} 10. Bc6+ {[%clk 0:04:22.1]} 10... Bd7 {[%clk 0:04:40.8]}
11. Bxd7+ {[%clk 0:04:21.3]} 11... Qxd7 {[%clk 0:04:39.6]} 12. O-O {[%clk
0:04:20.9]} 12... Be7 {[%clk 0:04:36.6]} 13. d3 {[%clk 0:04:20]} 13... O-O
{[%clk 0:04:34.9]} 14. f4 {[%clk 0:04:18.9]} 14... d5 {[%clk 0:04:22]} 15. e5
{[%clk 0:04:15.2]} 15... f6 {[%clk 0:04:10.6]} 16. b3 {[%clk 0:04:09.9]} 16...
f5 {[%clk 0:04:08.5]} 17. a4 {[%clk 0:04:06]} 17... c5 {[%clk 0:04:03.6]} 18.
Ba3 {[%clk 0:03:58.9]} 18... c4 {[%clk 0:03:54.2]} 19. Bxe7 {[%clk 0:03:54.5]}
19... Qxe7 {[%clk 0:03:52.1]} 20. dxc4 {[%clk 0:03:53.7]} 20... dxc4 {[%clk
0:03:50.5]} 21. Qxd4 {[%clk 0:03:51.6]} 21... cxb3 {[%clk 0:03:46.1]} 22. cxb3
{[%clk 0:03:50.4]} 22... Rxb3 {[%clk 0:03:41.3]} 23. Qc4+ {[%clk 0:03:47.8]}
23... Qf7 {[%clk 0:03:36.8]} 24. e6 {[%clk 0:03:47]} 1-0

[Event "Live Chess"]
[Site "Chess.com"]
[Date "2023.05.21"]
[Round "-"]
[White "Chesscoach_Golichenko"]
[Black "LiamBellwood"]
[Result "1-0"]
[WhiteElo "2618"]
[BlackElo "1934"]
[TimeControl "300"]
[EndTime "3:50:51 PDT"]
[Termination "Chesscoach_Golichenko won by resignation"]

1. d4 {[%clk 0:04:57.4]} 1... e6 {[%clk 0:04:59.9]} 2. c4 {[%clk 0:04:55.1]}
2... f5 {[%clk 0:04:59.3]} 3. g3 {[%clk 0:04:54]} 3... Nf6 {[%clk 0:04:58.7]} 4.
Bg2 {[%clk 0:04:53.6]} 4... Be7 {[%clk 0:04:58.4]} 5. Nf3 {[%clk 0:04:52.9]}
5... O-O {[%clk 0:04:58.1]} 6. O-O {[%clk 0:04:52.5]} 6... d6 {[%clk 0:04:57.8]}
7. Nc3 {[%clk 0:04:51.5]} 7... a5 {[%clk 0:04:57.5]} 8. b3 {[%clk 0:04:49.7]}
8... Ne4 {[%clk 0:04:56.6]} 9. Bb2 {[%clk 0:04:48.1]} 9... Nxc3 {[%clk
0:04:55.2]} 10. Bxc3 {[%clk 0:04:47.1]} 10... Qe8 {[%clk 0:04:55.1]} 11. Nd2
{[%clk 0:04:45.2]} 11... Qh5 {[%clk 0:04:53.4]} 12. e4 {[%clk 0:04:43.8]} 12...
Qxd1 {[%clk 0:04:51]} 13. Raxd1 {[%clk 0:04:43.7]} 13... f4 {[%clk 0:04:36.9]}
14. e5 {[%clk 0:04:35.2]} 14... Nc6 {[%clk 0:04:21.1]} 15. Rfe1 {[%clk
0:04:17.9]} 15... dxe5 {[%clk 0:04:11.1]} 16. dxe5 {[%clk 0:04:04.8]} 16... fxg3
{[%clk 0:03:58.3]} 17. hxg3 {[%clk 0:04:01.4]} 17... Bc5 {[%clk 0:03:57.3]} 18.
Ne4 {[%clk 0:03:54.6]} 18... Bb6 {[%clk 0:03:31.2]} 19. c5 {[%clk 0:03:53.5]}
19... Ba7 {[%clk 0:03:30.6]} 20. f4 {[%clk 0:03:45.4]} 20... Rd8 {[%clk
0:03:16.5]} 21. Kh2 {[%clk 0:03:38.8]} 21... h6 {[%clk 0:03:10.1]} 22. a3 {[%clk
0:03:34.7]} 22... Bd7 {[%clk 0:02:53.9]} 23. Bh3 {[%clk 0:03:30.1]} 23... Kf7
{[%clk 0:02:51.9]} 24. b4 {[%clk 0:03:20.6]} 24... axb4 {[%clk 0:02:45.4]} 25.
axb4 {[%clk 0:03:20.5]} 25... b6 {[%clk 0:02:31.3]} 26. b5 {[%clk 0:03:14.1]}
26... Ne7 {[%clk 0:02:30.3]} 27. c6 {[%clk 0:03:12.9]} 27... Be8 {[%clk
0:02:29.4]} 28. Rxd8 {[%clk 0:03:03.1]} 28... Rxd8 {[%clk 0:02:29.3]} 29. Ra1
{[%clk 0:03:02]} 29... Ra8 {[%clk 0:02:28.5]} 30. g4 {[%clk 0:02:46.6]} 30...
Nd5 {[%clk 0:02:26.5]} 31. Bd2 {[%clk 0:02:45.2]} 31... Ke7 {[%clk 0:02:09.2]}
32. f5 {[%clk 0:02:40.1]} 32... exf5 {[%clk 0:02:03.4]} 33. gxf5 {[%clk
0:02:38.7]} 33... Bh5 {[%clk 0:02:00.7]} 34. Rg1 {[%clk 0:02:27.3]} 34... Kf8
{[%clk 0:01:38.9]} 35. f6 {[%clk 0:02:21.7]} 35... gxf6 {[%clk 0:01:38.1]} 36.
exf6 {[%clk 0:02:12.2]} 36... Bf3 {[%clk 0:01:33.6]} 37. Bxh6+ {[%clk
0:02:03.7]} 37... Kf7 {[%clk 0:01:28.5]} 38. Rg7+ {[%clk 0:02:01.3]} 38... Ke8
{[%clk 0:01:25.1]} 1-0

[Event "Live Chess"]
[Site "Chess.com"]
[Date "2023.05.21"]
[Round "-"]
[White "EdenHazard8"]
[Black "Doge_Dandolo"]
[Result "0-1"]
[WhiteElo "1940"]
[BlackElo "1872"]
[TimeControl "300"]
[EndTime "3:51:16 PDT"]
[Termination "Doge_Dandolo won by resignation"]

1. e4 {[%clk 0:04:57.7]} 1... c6 {[%clk 0:04:58.2]} 2. d4 {[%clk 0:04:56.7]}
2... d5 {[%clk 0:04:56.9]} 3. e5 {[%clk 0:04:56.2]} 3... Bf5 {[%clk 0:04:55.2]}
4. h4 {[%clk 0:04:55.8]} 4... h5 {[%clk 0:04:54]} 5. Bd3 {[%clk 0:04:54.7]} 5...
Bxd3 {[%clk 0:04:52.8]} 6. Qxd3 {[%clk 0:04:54.6]} 6... Qa5+ {[%clk 0:04:52.3]}
7. Nd2 {[%clk 0:04:52.8]} 7... e6 {[%clk 0:04:51.1]} 8. Nf3 {[%clk 0:04:50.9]}
8... Nd7 {[%clk 0:04:45.7]} 9. O-O {[%clk 0:04:48.2]} 9... Ne7 {[%clk
0:04:43.8]} 10. a3 {[%clk 0:04:45.9]} 10... c5 {[%clk 0:04:34.4]} 11. b4 {[%clk
0:04:41.5]} 11... cxb4 {[%clk 0:04:32.7]} 12. axb4 {[%clk 0:04:41.4]} 12... Qxa1
{[%clk 0:04:31.1]} 13. Ba3 {[%clk 0:04:41.3]} 13... Qa2 {[%clk 0:04:27]} 14. Nb3
{[%clk 0:04:37]} 14... Rc8 {[%clk 0:04:24]} 15. c3 {[%clk 0:04:23]} 15... Nf5
{[%clk 0:04:11.3]} 16. Ra1 {[%clk 0:04:19.4]} 16... Qxb3 {[%clk 0:04:07.1]} 0-1